bitfinex/quotes_ETHUSD_20250319
["timestamp","ask_amount","ask_price","bid_price","bid_amount"]
[1742342722531,8.77820464,1937.4,1937.0,1.52846591]
[1742342722841,8.77817464,1937.4,1937.0,1.52846591]
[1742342723045,13.93995464,1937.4,1937.0,1.52846591]
[1742342723246,13.94044464,1937.3,1937.0,1.52846591]
[1742342723546,8.77840464,1937.3,1937.0,1.52846591]
[1742342723744,13.94035464,1937.3,1937.0,1.52846591]
[1742342723946,8.77864464,1937.2,1937.0,1.52846591]
[1742342724844,8.77878464,1937.1,1937.0,1.01219291]
[1742342725056,5.16309,1936.9,1936.7,3.0]
[1742342725354,8.77952464,1936.9,1936.8,5.92379496]
[1742342725516,8.77952464,1936.9,1936.8,4.898]
[1742342725720,9.61042464,1936.9,1936.8,4.898]
[1742342726919,5.99399,1936.9,1936.8,4.898]
[1742342727120,9.61042464,1936.9,1936.8,4.898]
[1742342727336,8.77952464,1936.9,1936.8,4.898]
[1742342728671,8.77915464,1937.0,1936.8,4.898]
[1742342729035,8.77915464,1937.0,1936.8,39.898]
[1742342729233,8.77915464,1937.0,1936.9,2.3253117]
[1742342729562,8.77915464,1937.0,1936.8,39.898]
[1742342729931,13.94194464,1937.0,1936.8,39.898]
[1742342730261,8.77931464,1936.9,1936.8,39.898]
[1742342730561,5.16288,1936.9,1936.8,39.898]
[1742342730742,8.77931464,1936.9,1936.8,39.898]
[1742342732737,8.77931464,1936.9,1936.8,40.08139405]
[1742342733139,8.77931464,1936.9,1936.8,5.08139405]
[1742342733472,8.77931464,1936.9,1936.8,0.18339405]
[1742342733769,8.77931464,1936.9,1936.8,5.08039405]
[1742342735351,8.77931464,1936.9,1936.8,5.0809503]
[1742342739393,14.61195274,1936.9,1936.8,3e-07]
[1742342739591,15.16195274,1936.9,1936.8,0.16776409]
[1742342739792,5.16422,1936.4,1936.3,4.897]
[1742342739986,8.78065464,1936.4,1936.3,4.897]
[1742342740188,8.78065464,1936.4,1936.3,5.95291734]
[1742342740485,8.78065464,1936.4,1936.3,4.897]
[1742342741684,3.61643464,1936.4,1936.3,4.897]
[1742342741885,5.16403,1936.5,1936.3,10.13520749]
[1742342742087,5.16403,1936.5,1936.4,0.7647]
[1742342742250,8.78015464,1936.6,1936.4,0.7647]
[1742342742986,8.78015464,1936.6,1936.5,0.16426165]
[1742342744566,5.16405,1936.5,1936.3,10.13520749]
[1742342744766,8.78048464,1936.5,1936.3,10.13520749]
[1742342745894,5.16405,1936.5,1936.3,10.13520749]
[1742342746057,5.16405,1936.5,1936.4,1.01352075]
[1742342746470,8.78048464,1936.5,1936.4,1.01352075]
[1742342747656,5.16422,1936.4,1936.3,7.897]
[1742342747889,5.16422,1936.4,1936.3,42.897]
[1742342748091,8.78065464,1936.4,1936.3,39.897]
[1742342748584,8.78065464,1936.4,1936.3,5.37928407]
[1742342748772,8.78065464,1936.4,1936.3,0.48228407]
[1742342749394,5.16422,1936.4,1936.3,4.50013275]
[1742342749587,5.16373,1936.6,1936.3,5.26483275]
[1742342749770,8.78005464,1936.7,1936.3,4.78254868]
[1742342749966,8.78005464,1936.7,1936.3,9.94697868]
[1742342751188,13.94367464,1936.7,1936.3,9.94698868]
[1742342751354,8.78005464,1936.7,1936.4,0.99469887]
[1742342751553,5.16362,1936.7,1936.4,0.99469887]
[1742342751759,8.78005464,1936.7,1936.4,0.99469887]
[1742342752060,8.78005464,1936.7,1936.4,1.47694618]
[1742342754622,8.78005464,1936.7,1936.6,5.93825787]
[1742342755206,5.16289,1936.9,1936.6,6.71145787]
[1742342755207,5.16317,1936.8,1936.6,6.71145787]
[1742342756000,5.16317,1936.8,1936.7,0.16427147]
[1742342756501,5.16317,1936.8,1936.6,40.93825787]
[1742342756702,5.16317,1936.8,1936.7,0.16427147]
[1742342757101,5.16317,1936.8,1936.6,40.93825787]
[1742342757102,5.16342,1936.7,1936.6,40.93825787]
[1742342757292,4.98922,1936.7,1936.6,43.47812559]
[1742342757609,3.61643464,1936.8,1936.6,8.47812559]
[1742342757912,3.61643464,1936.8,1936.6,5.93825787]
[1742342758203,8.77962464,1936.8,1936.6,5.93825787]
[1742342758414,5.16342,1936.7,1936.6,5.93825787]
[1742342760299,8.77962464,1936.8,1936.6,5.93825787]
[1742342760579,3.61643464,1936.8,1936.6,5.93825787]
[1742342760793,3.61643464,1936.8,1936.7,1.36702579]
[1742342763079,8.77958464,1936.8,1936.7,1.36702579]
[1742342764511,3.61643464,1936.8,1936.7,1.36702579]
[1742342765401,0.8242,1937.2,1936.7,1.36702579]
[1742342765604,3.61643464,1937.1,1936.7,4.36702579]
[1742342765783,8.77879464,1937.1,1936.8,0.43670258]
[1742342766519,3.61643464,1937.0,1936.9,0.4827681]
[1742342766682,3.61643464,1937.1,1936.9,0.4827681]
[1742342766883,5.93493,1937.3,1937.0,4.896]
[1742342767113,3.61643464,1937.2,1937.0,4.896]
[1742342767415,3.61643464,1937.2,1937.0,6.23677681]
[1742342767716,0.7851794,1937.5,1937.2,5.16198]
[1742342767717,0.0120794,1937.5,1937.2,5.16198]
[1742342768217,0.0120794,1937.5,1937.3,0.8029]
[1742342768422,8.78980404,1937.5,1937.4,4.896]
[1742342769498,8.78980404,1937.5,1937.4,5.90960688]
[1742342771009,9.56290404,1937.5,1937.4,6.07252138]
[1742342772910,9.56290404,1937.5,1937.4,5.0589145]
[1742342775224,8.78980404,1937.5,1937.4,5.0589145]
[1742342776030,3.62851404,1937.5,1937.4,5.0589145]
[1742342776714,8.78980404,1937.5,1937.4,5.0589145]
[1742342778538,8.53074104,1937.5,1937.4,5.0589145]
[1742342778699,5.16129,1937.5,1937.4,5.0589145]
[1742342779401,8.77772464,1937.5,1937.4,5.0589145]
[1742342779631,8.77772464,1937.5,1937.4,4.9671145]
[1742342780544,8.77772464,1937.5,1937.4,0.1629145]
[1742342780545,10.9447201,1937.5,1937.4,0.1629145]
[1742342780909,5.16235,1937.1,1937.0,5.9134174]
[1742342781114,5.16235,1937.1,1937.0,1.0184174]
[1742342781314,5.16235,1937.1,1937.0,5.9134174]
[1742342781847,8.77856464,1937.2,1937.0,5.9134174]
[1742342782042,8.77856464,1937.2,1937.0,10.00475914]
[1742342783444,8.77856464,1937.2,1937.0,5.9134174]
[1742342783918,3.61643464,1937.2,1937.0,5.9134174]
[1742342784626,3.61643464,1937.2,1937.0,40.9134174]
[1742342785651,8.77825464,1937.3,1937.1,0.7916]
[1742342786007,8.77825464,1937.3,1937.2,0.15908981]
[1742342786327,3.61643464,1937.3,1937.2,0.15908981]
[1742342787144,5.16129,1937.5,1937.2,0.15908981]
[1742342787306,5.16129,1937.5,1937.2,0.77039279]
[1742342787834,8.77772464,1937.5,1937.2,0.77039279]
[1742342788038,8.77772464,1937.5,1937.3,35.0]
[1742342788348,5.16129,1937.5,1937.4,4.894]
[1742342788641,5.16129,1937.5,1937.4,5.05287597]
[1742342789842,8.77772464,1937.5,1937.4,5.05287597]
[1742342791916,10.1715991,1937.5,1937.4,0.15887597]
[1742342792163,10.9380991,1937.5,1937.4,0.15887597]
[1742342792318,10.9382291,1937.5,1937.0,4.894]
[1742342792655,8.77783464,1937.5,1937.2,1.04953763]
[1742342792858,5.16157,1937.4,1937.2,1.04953763]
[1742342793060,5.16157,1937.4,1937.3,0.15582918]
[1742342793466,3.61643464,1937.4,1937.3,0.15582918]
[1742342794809,3.61643464,1937.4,1937.3,0.18042471]
[1742342795268,8.77798464,1937.4,1937.3,0.18042471]
[1742342796315,8.77798464,1937.4,1937.3,35.18042471]
[1742342796520,3.61643464,1937.4,1937.3,35.18042471]
[1742342800674,8.77747464,1937.6,1937.3,39.60462094]
[1742342800834,5.16104,1937.6,1937.4,4.894]
[1742342801035,3.61643464,1937.5,1937.4,4.894]
[1742342804872,3.61643464,1937.5,1937.4,10.05555]
[1742342805072,3.61643464,1937.7,1937.4,4.894]
[1742342805245,3.61643464,1937.7,1937.6,0.8012]
[1742342805685,3.61643464,1937.7,1937.5,10.05524]
[1742342806039,3.61643464,1937.6,1937.5,10.05524]
[1742342806242,3.61643464,1937.6,1937.5,4.894]
[1742342807138,3.61643464,1937.6,1937.5,5.91730586]
[1742342809465,3.61643464,1937.6,1937.5,7.02518745]
[1742342809978,3.61643464,1937.7,1937.5,12.18644745]
[1742342810167,5.98754,1937.9,1937.5,12.18644745]
[1742342810168,3.61643464,1937.8,1937.5,12.98764745]
[1742342810682,3.61643464,1937.8,1937.6,5.16101]
[1742342810988,5.987,1938.1,1937.7,5.16072]
[1742342810989,3.61643464,1938.1,1937.7,5.16072]
[1742342811153,10.31968,1938.1,1937.8,0.8259]
[1742342811355,3.61643464,1938.0,1937.9,4.893]
[1742342811548,8.77638464,1938.0,1937.9,4.893]
[1742342812383,3.61643464,1938.0,1937.9,4.893]
[1742342814078,8.77638464,1938.0,1937.9,4.893]
[1742342814298,5.7611511,1938.0,1937.5,0.8259]
[1742342814584,5.16075,1937.7,1937.6,4.893]
[1742342815258,5.16075,1937.7,1937.6,5.94204801]
[1742342815572,5.91185,1937.7,1937.6,5.94204801]
[1742342816083,5.91185,1937.7,1937.6,6.08588855]
[1742342816580,9.52828464,1937.7,1937.6,5.03684054]
[1742342819851,9.52828464,1937.7,1937.6,1.44224054]
[1742342821375,9.52828464,1937.7,1937.6,0.14384054]
[1742342821554,10.6764751,1937.7,1937.6,0.14384054]
[1742342823456,9.52828464,1937.7,1937.6,0.14384054]
[1742342823659,13.20361928,1937.7,1937.6,0.14384054]
[1742342823859,9.58718464,1937.7,1937.6,0.14384054]
[1742342824054,5.16137,1937.5,1937.3,1.07497764]
[1742342824261,8.77798464,1937.4,1937.3,1.07497764]
[1742342824593,3.61643464,1937.4,1937.3,1.07497764]
[1742342825288,5.16064,1937.8,1937.4,5.94835]
[1742342825486,3.61643464,1937.7,1937.4,0.7869]
[1742342825791,3.61643464,1937.7,1937.4,5.94836]
[1742342826292,3.61643464,1937.7,1937.5,5.16105]
[1742342826487,3.61643464,1937.7,1937.6,5.409105]
[1742342827891,3.61643464,1937.9,1937.7,0.8208]
[1742342828668,3.61643464,1937.8,1937.7,0.8208]
[1742342831096,3.61643464,1937.8,1937.7,0.9529482]
[1742342832112,3.61643464,1937.8,1937.7,1.33832266]
[1742342832470,9.52992464,1937.8,1937.7,0.51752266]
[1742342832677,9.8915681,1937.8,1937.7,0.51752266]
[1742342833099,9.1385681,1937.8,1937.7,0.51752266]
[1742342833276,9.8915681,1937.8,1937.7,0.51752266]
[1742342833795,9.8915681,1937.8,1937.7,0.1321482]
[1742342833995,5.16098,1937.7,1937.4,1.02923975]
[1742342834213,3.61643464,1937.5,1937.4,1.02923975]
[1742342835070,3.61643464,1937.5,1937.4,1.41500191]
[1742342836074,3.61643464,1937.5,1937.4,2.15721565]
[1742342836918,3.61643464,1937.5,1937.4,1.41500191]
[1742342840517,8.77772464,1937.5,1937.4,1.41500191]
[1742342840717,5.91429,1937.5,1937.4,0.38576216]
[1742342840889,5.91429,1937.5,1937.3,6.41710814]
[1742342841213,3.61643464,1937.4,1937.3,6.41710814]
[1742342841413,8.77798464,1937.4,1937.3,1.52410814]
[1742342841819,8.77798464,1937.4,1937.3,1.04204987]
[1742342842519,8.77798464,1937.4,1937.3,0.02459553]
[1742342843021,10.2472121,1937.4,1937.3,0.02459553]
[1742342845492,3.61643464,1937.4,1937.3,0.02459553]
[1742342846093,3.61643464,1937.4,1937.3,0.14846851]
[1742342846905,8.77798464,1937.4,1937.3,0.14846851]
[1742342847704,3.61643464,1937.4,1937.3,0.14846851]
[1742342848212,3.61643464,1937.4,1937.3,35.14846851]
[1742342849126,3.61643464,1937.4,1937.3,38.79395865]
[1742342849328,0.8155,1937.7,1937.3,3.79395865]
[1742342849647,3.61643464,1937.7,1937.5,0.8248]
[1742342849838,10.32074,1937.9,1937.5,0.8248]
[1742342849839,3.61643464,1937.6,1937.5,0.8248]
[1742342850604,3.61643464,1937.7,1937.5,3.8248]
[1742342850807,3.61643464,1937.7,1937.5,8.98588]
[1742342852352,3.61643464,1937.8,1937.7,5.98555]
[1742342852551,3.61643464,1937.8,1937.7,6.832445]
[1742342853116,3.61643464,1937.8,1937.7,11.993195]
[1742342853358,3.61643464,1937.8,1937.7,46.993195]
[1742342854047,8.77692464,1937.8,1937.7,4.893]
[1742342858683,8.77692464,1937.8,1937.6,1.05761568]
[1742342858684,5.16075,1937.7,1937.6,1.05761568]
[1742342858965,5.16102,1937.6,1937.5,0.00729896]
[1742342859136,8.77745464,1937.6,1937.5,0.00729896]
[1742342859723,8.77745464,1937.6,1937.5,1.04738876]
[1742342860152,3.61643464,1937.6,1937.5,1.04738876]
[1742342861046,3.61643464,1937.6,1937.5,1.1667603]
[1742342861564,3.61643464,1937.6,1937.5,1.9556603]
[1742342861750,3.61643464,1937.6,1937.5,3.15707633]
[1742342862472,3.61643464,1937.6,1937.5,8.31836633]
[1742342863243,3.61643464,1937.6,1937.5,43.31836633]
[1742342866996,3.61643464,1937.7,1937.5,43.31836633]
[1742342867158,3.61643464,1937.7,1937.5,43.31822633]
[1742342867360,3.61643464,1937.8,1937.6,9.49284263]
[1742342867686,3.61643464,1937.7,1937.6,9.49284263]
[1742342867989,3.61643464,1937.7,1937.6,35.0]
[1742342868998,12.39361928,1937.7,1937.5,1.04738876]
[1742342869159,13.18708928,1937.6,1937.5,0.00729896]
[1742342869361,15.02187321,1937.6,1937.5,0.00729896]
[1742342871658,11.40543857,1937.6,1937.5,0.00729896]
[1742342872001,13.18708928,1937.6,1937.5,0.00729896]
[1742342872992,9.57065464,1937.6,1937.5,0.00729896]
[1742342874012,13.18708928,1937.6,1937.5,0.00729896]
[1742342875434,9.57065464,1937.6,1937.5,0.00729896]
[1742342876079,9.57065464,1937.6,1937.5,0.12273202]
[1742342879022,11.0437951,1937.6,1937.5,0.12273202]
[1742342880420,8.77745464,1937.6,1937.5,0.12273202]
[1742342881540,3.61643464,1937.6,1937.5,0.12273202]
[1742342881836,3.61643464,1937.7,1937.5,0.12273202]
[1742342882732,3.61643464,1937.7,1937.5,1.15615848]
[1742342883831,3.61643464,1937.6,1937.5,1.15615848]
[1742342884411,8.77745464,1937.6,1937.5,6.05215848]
[1742342884599,8.77745464,1937.6,1937.5,5.01873202]
[1742342887547,10.2521761,1937.6,1937.5,5.01873202]
[1742342887849,13.86861074,1937.6,1937.5,5.01873202]
[1742342888049,10.2521761,1937.6,1937.5,5.01873202]
[1742342888609,13.86861074,1937.6,1937.5,5.01873202]
[1742342888811,10.2521761,1937.6,1937.5,0.12273202]
[1742342889525,13.86861074,1937.6,1937.5,0.12273202]
[1742342889760,10.2521761,1937.6,1937.5,0.12273202]
[1742342890614,13.86861074,1937.6,1937.5,0.12273202]
[1742342892212,14.62851074,1937.6,1937.5,0.12273202]
[1742342892615,14.62851074,1937.6,1937.5,0.00729896]
[1742342893136,5.16288,1936.9,1936.8,17.074]
[1742342893340,5.16358,1936.7,1936.5,0.8048]
[1742342893509,5.16358,1936.7,1936.6,4.899]
[1742342893713,5.16358,1936.7,1936.6,8.95067845]
[1742342894157,5.16358,1936.7,1936.6,5.95067845]
[1742342894451,5.16358,1936.7,1936.6,8.95067845]
[1742342895560,5.16317,1936.8,1936.7,3.0]
[1742342896559,3.61643464,1936.8,1936.7,3.0]
[1742342896721,3.61643464,1937.0,1936.8,0.7591]
[1742342897055,3.61643464,1937.0,1936.8,5.9221]
[1742342897265,3.61643464,1937.0,1936.9,35.0]
[1742342897554,3.61643464,1937.1,1936.9,35.0]
[1742342897857,5.16192,1937.3,1937.1,0.7591]
[1742342898219,5.16216,1937.2,1937.0,4.896]
[1742342898521,5.16182,1937.3,1937.1,35.0]
[1742342899048,5.16182,1937.3,1937.0,4.906]
[1742342899355,3.61643464,1937.1,1937.0,4.906]
[1742342899655,3.61643464,1937.1,1937.0,40.96067941]
[1742342899855,3.61643464,1937.1,1937.0,45.42626768]
[1742342900430,3.61643464,1937.2,1937.0,45.42626768]
[1742342900630,3.61643464,1937.2,1937.0,55.75125768]
[1742342900835,3.61643464,1937.3,1937.1,5.92145]
[1742342901035,3.61643464,1937.2,1937.1,5.92145]
[1742342901231,3.61643464,1937.2,1937.1,11.15965749]
[1742342902158,3.61643464,1937.2,1937.1,5.99730749]
[1742342902958,3.61643464,1937.2,1937.1,0.7591]
[1742342906152,3.61643464,1937.2,1937.1,0.86499222]
[1742342908544,8.77851464,1937.2,1937.1,0.10589222]
[1742342910265,3.61643464,1937.2,1937.1,0.10589222]
[1742342910466,8.77851464,1937.2,1937.1,4.99989222]
[1742342911043,8.77851464,1937.2,1937.1,0.10589222]
[1742342911384,11.0745541,1937.2,1937.1,0.10589222]
[1742342911858,5.16315,1936.8,1936.7,9.14]
[1742342912045,8.77958464,1936.8,1936.7,3.0]
[1742342913174,8.77958464,1936.8,1936.7,4.02452907]
[1742342913473,14.28178674,1936.8,1936.7,1.02452907]
[1742342913652,5.16342,1936.7,1936.6,0.02459553]
[1742342913834,5.22797164,1936.7,1936.6,0.02459553]
[1742342915838,8.77985464,1936.7,1936.6,0.02459553]
[1742342916069,3.61643464,1936.7,1936.6,0.02459553]
[1742342916478,8.77985464,1936.7,1936.6,0.02459553]
[1742342916664,3.61643464,1936.7,1936.6,0.02459553]
[1742342916974,10.23869375,1936.7,1936.6,0.02459553]
[1742342917179,10.1741501,1936.7,1936.6,0.02459553]
[1742342920369,10.9726501,1936.7,1936.6,0.02459553]
[1742342921246,10.9726501,1936.7,1936.6,0.12055478]
[1742342921469,10.9726501,1936.7,1936.6,0.02459553]
[1742342921670,10.9726501,1936.7,1936.6,0.12055478]
[1742342921846,10.9726501,1936.7,1936.6,0.02459553]
[1742342922055,10.9726501,1936.7,1936.6,0.12055478]
[1742342924360,5.16342,1936.7,1936.6,0.12055478]
[1742342924571,5.1629,1936.9,1936.6,0.12055478]
[1742342924869,3.61643464,1936.8,1936.7,4.918]
[1742342925250,3.61643464,1936.8,1936.7,5.76830704]
[1742342925840,3.61643464,1936.9,1936.7,5.76830704]
[1742342926040,3.61643464,1936.9,1936.7,6.8639503]
[1742342926478,3.61643464,1936.9,1936.7,7.91949204]
[1742342929063,8.77958464,1936.8,1936.7,6.06994878]
[1742342929280,8.77958464,1936.8,1936.7,5.01440704]
[1742342929464,8.77958464,1936.8,1936.7,0.09640704]
[1742342930199,8.77958464,1936.8,1936.6,1.08376136]
[1742342930406,8.77958464,1936.8,1936.7,0.09640704]
[1742342930707,8.77958464,1936.8,1936.6,1.08376136]
[1742342931017,8.77958464,1936.8,1936.7,0.09640704]
[1742342931168,8.77958464,1936.8,1936.6,1.08376136]
[1742342931365,13.94297464,1936.8,1936.7,0.09670468]
[1742342931571,8.77958464,1936.8,1936.6,1.08376136]
[1742342931802,8.77958464,1936.8,1936.7,0.09670468]
[1742342932105,8.77958464,1936.8,1936.6,1.08376136]
[1742342932427,5.16315,1936.8,1936.7,0.09670468]
[1742342932624,5.16342,1936.7,1936.6,1.08376136]
[1742342933608,3.61643464,1936.7,1936.6,1.08376136]
[1742342935508,0.8047,1939.0,1936.8,6.14]
[1742342935719,0.8047,1939.0,1938.5,5.15844]
[1742342936017,0.06448076,1939.7,1938.5,5.15844]
[1742342936018,5.96136,1939.3,1938.8,8.15772]
[1742342936221,5.96136,1939.3,1938.8,8.15781]
[1742342936424,5.15687,1939.2,1938.9,0.09352835]
[1742342936624,5.15687,1939.2,1938.8,5.15779]
[1742342936923,5.15687,1939.2,1939.0,0.09342161]
[1742342937219,0.02,1939.4,1939.1,0.09328108]
[1742342937382,10.31327,1939.3,1939.0,5.184]
[1742342937624,5.15662,1939.3,1939.2,0.09317437]
[1742342937834,5.15662,1939.3,1939.0,5.184]
[1742342938020,5.15677,1939.2,1939.0,5.184]
[1742342938520,5.15703,1939.1,1939.0,5.184]
[1742342938905,5.15677,1939.2,1939.0,5.184]
[1742342940790,5.15677,1939.2,1939.0,6.23544915]
[1742342940998,0.02,1939.4,1939.0,7.15899407]
[1742342941623,0.02,1939.4,1939.0,12.31607407]
[1742342941827,0.02,1939.4,1939.0,17.47322407]
[1742342942130,0.02,1939.4,1939.0,12.31607407]
[1742342942341,0.02,1939.4,1939.1,1.23160741]
[1742342942858,10.33268,1939.4,1939.1,1.23160741]
[1742342943171,5.15652,1939.3,1939.1,1.23160741]
[1742342943820,5.15652,1939.3,1939.2,0.02459553]
[1742342944107,0.02,1939.4,1939.2,0.02459553]
[1742342944560,5.15649,1939.3,1939.2,0.02459553]
[1742342944970,5.17646,1939.4,1939.2,0.02459553]
[1742342945625,5.17636,1939.4,1939.2,0.02459553]
[1742342947328,10.33277,1939.4,1939.2,0.02459553]
[1742342947546,5.22094826,1939.3,1939.2,0.02459553]
[1742342948403,5.17636,1939.4,1939.2,0.02459553]
[1742342948608,0.02,1939.4,1939.2,0.02459553]
[1742342949852,5.17628,1939.4,1939.2,0.02459553]
[1742342950963,5.17628,1939.4,1939.3,0.08385875]
[1742342951750,5.17628,1939.4,1939.3,1.11673181]
[1742342952113,5.17628,1939.4,1939.3,0.08385875]
[1742342952341,5.24073822,1939.4,1939.3,0.08385875]
[1742342953315,5.12628,1939.4,1939.3,0.08385875]
[1742342953638,5.19074053,1939.4,1939.3,0.08385875]
[1742342955161,6.62476106,1939.4,1939.3,0.08385875]
[1742342955339,7.92646106,1939.4,1939.3,0.08385875]
[1742342955648,7.86200053,1939.4,1939.3,0.08385875]
[1742342956231,7.31200053,1939.4,1939.3,0.08385875]
[1742342956639,5.87798,1939.4,1939.3,0.08385875]
[1742342956844,5.94244665,1939.4,1939.3,0.08385875]
[1742342957218,9.54805451,1939.4,1939.3,0.08385875]
[1742342957450,9.48358786,1939.4,1939.3,0.08385875]
[1742342958122,8.73188786,1939.4,1939.3,0.08385875]
[1742342958322,3.60560786,1939.4,1939.3,0.08385875]
[1742342958535,8.76183786,1939.4,1939.3,0.08385875]
[1742342964660,5.15623,1939.4,1939.3,0.08385875]
[1742342964849,8.76183786,1939.4,1939.3,0.08385875]
[1742342966358,5.15545,1939.7,1939.3,5.24024875]
[1742342966667,8.76105786,1939.7,1939.4,5.62602488]
[1742342967024,8.76105786,1939.7,1939.5,35.0797792]
[1742342967229,8.76105786,1939.7,1939.5,0.0797792]
[1742342967729,8.76105786,1939.7,1939.6,35.0]
[1742342967948,8.76105786,1939.7,1939.6,36.89800982]
[1742342968151,8.76105786,1939.7,1939.6,38.70896802]
[1742342968353,8.76105786,1939.7,1939.6,39.47842654]
[1742342969066,8.76105786,1939.7,1939.6,3.96545091]
[1742342969556,8.76105786,1939.7,1939.6,3.00362553]
[1742342970234,8.76105786,1939.7,1939.6,2.23416701]
[1742342971872,8.76105786,1939.7,1939.6,1.46470671]
[1742342972073,8.76105786,1939.7,1939.6,0.07967252]
[1742342972455,5.15595,1939.6,1939.3,6.13845657]
[1742342972764,5.15601,1939.5,1939.4,0.07988588]
[1742342973161,5.15601,1939.5,1939.3,6.13845657]
[1742342973459,5.15601,1939.5,1939.4,3.004163]
[1742342973837,8.76161786,1939.5,1939.4,3.004163]
[1742342974676,8.76161786,1939.5,1939.4,2.23462635]
[1742342974876,8.76161786,1939.5,1939.4,0.84939833]
[1742342975268,8.76161786,1939.5,1939.4,0.07988588]
[1742342975443,5.15647,1939.4,1939.2,1.08068783]
[1742342975643,3.60560786,1939.3,1939.2,1.08068783]
[1742342976850,8.76209786,1939.3,1939.2,1.08068783]
[1742342977567,8.76209786,1939.3,1939.2,1.56410159]
[1742342977874,14.51796251,1939.3,1939.2,1.56410159]
[1742342978073,14.51796251,1939.3,1939.2,2.94963404]
[1742342978481,6.54834679,1939.3,1939.2,2.94963404]
[1742342978775,6.54834679,1939.3,1939.2,2.17988061]
[1742342978776,8.76209786,1939.3,1939.2,2.17988061]
[1742342978992,8.76209786,1939.3,1939.2,1.41012798]
[1742342979391,8.76209786,1939.3,1939.2,0.02459553]
[1742342981157,8.76209786,1939.3,1939.2,0.10452703]
[1742342981968,8.76209786,1939.3,1939.2,0.72038583]
[1742342983180,8.76209786,1939.3,1939.2,0.10452703]
[1742342984883,9.52049786,1939.3,1939.2,0.10452703]
[1742342985495,10.98819465,1939.3,1939.2,0.10452703]
[1742342985693,14.59380251,1939.3,1939.2,0.10452703]
[1742342985995,10.98819465,1939.3,1939.2,0.02459553]
[1742342988499,10.98819465,1939.3,1939.2,0.10490291]
[1742342988698,10.98819465,1939.3,1939.2,0.02459553]
[1742342989803,9.52049786,1939.3,1939.2,0.02459553]
[1742342990713,9.52049786,1939.3,1939.2,0.10490291]
[1742342990874,9.52049786,1939.3,1939.2,0.02459553]
[1742342991414,9.52049786,1939.3,1939.2,0.1022009]
[1742342993020,9.52049786,1939.3,1939.2,0.02459553]
[1742342993695,8.76209786,1939.3,1939.2,0.09959476]
[1742343001510,3.60560786,1939.3,1939.2,0.09959476]
[1742343002078,5.15596,1939.5,1939.2,0.09959476]
[1742343002332,3.60560786,1939.5,1939.3,0.8291]
[1742343002779,3.60560786,1939.5,1939.4,0.07203634]
[1742343002975,5.15544,1939.7,1939.4,0.07203634]
[1742343003289,3.60560786,1939.6,1939.5,0.07192965]
[1742343004210,3.60560786,1939.7,1939.5,0.90102965]
[1742343004387,5.15534,1939.8,1939.5,0.90102965]
[1742343004388,3.60560786,1939.6,1939.5,2.00995061]
[1742343004793,5.15425,1940.2,1939.5,5.00995061]
[1742343004997,3.60560786,1940.0,1939.7,5.98443]
[1742343005311,3.60560786,1939.9,1939.8,5.10444188]
[1742343005511,3.60560786,1939.9,1939.8,9.19779607]
[1742343005817,3.60560786,1939.9,1939.8,14.35296607]
[1742343006207,3.60560786,1939.9,1939.8,9.19779607]
[1742343007218,8.82494448,1939.9,1939.8,0.07144188]
[1742343007417,9.51160786,1939.9,1939.8,0.07144188]
[1742343007579,10.06160786,1939.9,1939.8,0.07144188]
[1742343007782,10.06160786,1939.9,1939.3,0.51304741]
[1742343007783,5.15623,1939.4,1939.3,0.51304741]
[1742343008014,8.76183786,1939.4,1939.3,0.51304741]
[1742343008218,8.76183786,1939.4,1939.3,0.57737468]
[1742343008409,8.76183786,1939.4,1939.3,0.06432727]
[1742343013343,3.60560786,1939.4,1939.3,0.06432727]
[1742343013949,5.15604,1939.5,1939.3,0.87722727]
[1742343014103,8.76183786,1939.4,1939.3,0.87722727]
[1742343014543,5.15623,1939.4,1939.3,0.87722727]
[1742343014834,8.76183786,1939.4,1939.3,0.06432727]
[1742343016339,3.60560786,1939.4,1939.3,0.06432727]
[1742343016541,5.15599,1939.5,1939.3,0.06432727]
[1742343016542,5.90678,1939.7,1939.3,0.06432727]
[1742343016741,3.60560786,1939.4,1939.3,0.06432727]
[1742343016946,3.60560786,1939.4,1939.3,0.58889155]
[1742343017335,3.60560786,1939.4,1939.3,1.35349155]
[1742343018114,3.60560786,1939.4,1939.3,0.82892727]
[1742343018949,3.60310077,1939.4,1939.3,0.82892727]
[1742343019446,3.60560786,1939.5,1939.3,5.98531727]
[1742343019644,3.60560786,1939.5,1939.3,11.00931727]
[1742343020044,3.60560786,1939.5,1939.3,5.85292727]
[1742343020348,3.60560786,1939.5,1939.4,0.58529273]
[1742343020847,3.60560786,1939.5,1939.4,0.64980128]
[1742343021144,3.60560786,1939.5,1939.4,5.80603128]
[1742343021348,3.60560786,1939.5,1939.4,0.64980128]
[1742343022651,3.60560786,1939.5,1939.4,5.80603128]
[1742343023151,3.60560786,1939.5,1939.4,6.63313128]
[1742343023553,3.60560786,1939.7,1939.5,5.15575]
[1742343023753,3.60560786,1939.7,1939.6,0.515575]
[1742343023949,3.60560786,1939.7,1939.6,0.58002419]
[1742343024451,3.60560786,1939.7,1939.6,0.06444919]
[1742343024617,3.60560786,1939.7,1939.5,35.0]
[1742343024812,3.60560786,1939.7,1939.6,0.06444919]
[1742343026335,3.60560786,1940.0,1939.7,0.8271]
[1742343026538,3.60560786,1940.0,1939.8,5.012]
[1742343026717,3.60560786,1940.0,1939.9,0.5012]
[1742343026914,3.60560786,1940.0,1939.9,0.56509482]
[1742343029251,3.60560786,1940.0,1939.9,1.11042326]
[1742343029421,13.80597718,1940.0,1939.9,0.06389482]
[1742343029621,13.80597718,1940.0,1939.5,6.14]
[1742343029622,5.15569,1939.7,1939.5,6.14]
[1742343030049,5.15569,1939.7,1939.6,0.0572327]
[1742343030919,8.76129786,1939.7,1939.6,0.0572327]
[1742343032030,3.60560786,1939.7,1939.6,0.67695597]
[1742343032232,5.15524,1939.8,1939.6,0.67695597]
[1742343032452,3.60560786,1939.7,1939.6,0.67695597]
[1742343032851,3.56300786,1939.7,1939.6,0.67695597]
[1742343033060,3.56300786,1939.7,1939.6,0.12413641]
[1742343035822,3.56300786,1939.7,1939.6,1.16601408]
[1742343037854,3.60560786,1939.8,1939.6,1.16601408]
[1742343038061,3.60560786,1939.8,1939.7,5.018]
[1742343038262,3.60560786,1939.8,1939.7,5.14202631]
[1742343038859,3.60560786,1939.8,1939.7,6.56231671]
[1742343039357,3.60560786,1939.8,1939.7,5.14202631]
[1742343039933,8.76077786,1939.8,1939.7,5.14202631]
[1742343041062,3.60560786,1939.8,1939.7,5.14202631]
[1742343043331,8.76077786,1939.8,1939.7,5.14202631]
[1742343044162,8.74077786,1939.8,1939.7,5.14202631]